{"text_format":"3","workbook":"xlsx","n_sheets":2,"sheets":["KAKO KORISTITI OVU RADNU SVESKU","DNEVNIK OCENA"],"not_rendered":{"defined_names":7},"read":"whole","date_system":"1900"}

{"sheet":"KAKO KORISTITI OVU RADNU SVESKU","index":0,"n_rows":10,"n_cols":2,"rows_kept":10}
[null,"UPUTSTVA"]
[null,"Koristite radnu svesku DNEVNIK OCENA da biste izračunavali ocene u slučajevima kada svaki zadatak nosi određeni broj bodova. "]
[null,"Uputstva: Obavezno sačuvajte rezervnu kopiju ocena."]
[null,"1. Unesite ime škole, informacije o odeljenju, imena učenika i ID-ove učenika (opcionalno).   "]
[null,"2. Prilagodite tabelu sa ocenama i prosečnim ocenama tako da se podudaraju sa sistemom ocenjivanja koji obično koristite."]
[null,"3. Unesite imena zadatka, kviza ili testa (na primer „Kviz 1“) počevši od ćelije H8, zajedno sa brojem bodova koje nosi svaki zadatak. "]
[null,"4. Unesite rezultate svakog učenika na svakom zadatku ili testu. Kolone „Prosečna“, „Rezultat“, „Slovna ocena“ i „ocena“ izračunavaju se automatski, ali ako želite možete da ih zamenite. Da biste dodelili dodatne nagradne bodove, jednostavno dodajte u zadatak više bodova nego što je navedeno da taj zadatak ukupno može da ostvari."]
[null,"Koristite komandu „Oblast za štampanje“ u meniju „Raspored na stranici“ ako želite da promenite sadržaj za štampanje."]
[null,"Rezultati za ocene se zasnivaju na standardnoj skali procenata u skladu sa ukupnim brojem bodova koji se dodeljuje u redovima 8 i 9. Prilagodite svaki zadatak ili test željenom broju bodova, a zatim prilagodite procenat tako da ide uz odgovarajuću ocenu. Zamenite ćelije sa rezultatima da biste ručno uneli promene."]
[null,"Unesite svaki zadatak, kviz ili test i bodove koje svaki od njih nosi u ćelije od H8 do X9."]

{"sheet":"DNEVNIK OCENA","index":1,"n_rows":24,"n_cols":24,"rows_kept":24,"merged":[[1,1,2,6],[3,1,3,6],[4,1,6,6],[7,4,7,6],[8,4,8,6],[10,4,10,6],[11,4,11,6],[19,1,19,6],[20,1,20,2],[20,3,20,4],[21,1,21,2],[21,3,21,4],[22,1,22,2],[22,3,22,4],[23,1,23,2],[23,3,23,4]]}
[null,"IME VAŠE ŠKOLE"]
[null,"Ime nastavnika"]
[{"$nulls":7},"Rezultat",{"$f":"I4*UkupnoPoena","v":118},120,126,134,140,{"v":145.6666666666666,"d":"146"},154,160,166,174,180,186,194]
[null,"Razred/projekat",{"$nulls":5},"%",{"v":0.59,"d":"59%"},{"v":0.6,"d":"60%"},{"v":0.63,"d":"63%"},{"v":0.67,"d":"67%"},{"v":0.7,"d":"70%"},{"v":0.728333333333333,"d":"73%"},{"v":0.77,"d":"77%"},{"v":0.8,"d":"80%"},{"v":0.83,"d":"83%"},{"v":0.87,"d":"87%"},{"v":0.9,"d":"90%"},{"v":0.93,"d":"93%"},{"v":0.97,"d":"97%"}]
[null,"Godina/semestar/kvartal",{"$nulls":5},"slovna ocena","F","D-","D","D+","C-","C","C+","B-","B","B+","A-","A","A+"]
[{"$nulls":7},"Prosečna ocena",0,0.67,1,1.33,1.67,2,2.33,2.67,3,3.33,3.67,4,4]
[]
[{"$nulls":4},"Ime zadatka ili testa",null,null,"HW1","HW2","K1"]
[{"$nulls":4},"Ukupno dostupnih bodova",null,null,50,50,100]
[]
[{"$nulls":4},"Ukupan broj zadataka i testova:",null,null,{"$f":"COUNTA(H8:X8)","v":3}]
[{"$nulls":4},"Ukupan broj bodova koji može da se dobije:",null,null,{"$f":"SUM(H9:X9)","v":200}]
[]
[null,"Ime učenika","ID učenika","Prosečna","Rezultat","slovna ocena","Prosečna ocena","Kolona6","Kolona7","Kolona8","Kolona9","Kolona10","Kolona11","Kolona12","Kolona13","Kolona14","Kolona15","Kolona16","Kolona17","Kolona18","Kolona19","Kolona20","Kolona21","Kolona22"]
[null,"Broj učenika 1",null,{"$f":"IFERROR(IF(COUNT(Ocene[[#This Row],[Kolona6]:[Kolona22]])=0,\"\",SUM(Ocene[[#This Row],[Kolona6]:[Kolona22]])/UkupnoPoena),\"\")","v":{"v":0.91,"d":"91.0%"}},{"$f":"IF(COUNT(Ocene[[#This Row],[Kolona6]:[Kolona22]])=0,\"\",SUM(Ocene[[#This Row],[Kolona6]:[Kolona22]]))","v":182},{"$f":"IFERROR(IF(Ocene[[#This Row],[Prosečna]]<>\"\",HLOOKUP(Ocene[[#This Row],[Prosečna]]*UkupnoPoena,TabelaOcena,3),\"\"),0)","v":"A-"},{"$f":"IFERROR(IF(Ocene[[#This Row],[Prosečna]]<>\"\",HLOOKUP(Ocene[[#This Row],[Prosečna]]*UkupnoPoena,TabelaOcena,4),\"\"),0)","v":3.67},45,45,92]
[null,"Broj učenika dos",null,{"$f":"IFERROR(IF(COUNT(Ocene[[#This Row],[Kolona6]:[Kolona22]])=0,\"\",SUM(Ocene[[#This Row],[Kolona6]:[Kolona22]])/UkupnoPoena),\"\")","v":{"v":1,"d":"100.0%"}},{"$f":"IF(COUNT(Ocene[[#This Row],[Kolona6]:[Kolona22]])=0,\"\",SUM(Ocene[[#This Row],[Kolona6]:[Kolona22]]))","v":200},{"$f":"IFERROR(IF(Ocene[[#This Row],[Prosečna]]<>\"\",HLOOKUP(Ocene[[#This Row],[Prosečna]]*UkupnoPoena,TabelaOcena,3),\"\"),0)","v":"A+"},{"$f":"IFERROR(IF(Ocene[[#This Row],[Prosečna]]<>\"\",HLOOKUP(Ocene[[#This Row],[Prosečna]]*UkupnoPoena,TabelaOcena,4),\"\"),0)","v":{"v":4,"d":"4.00"}},50,50,100]
[{"$nulls":3},{"$f":"IFERROR(IF(COUNT(Ocene[[#This Row],[Kolona6]:[Kolona22]])=0,\"\",SUM(Ocene[[#This Row],[Kolona6]:[Kolona22]])/UkupnoPoena),\"\")","v":""},{"$f":"IF(COUNT(Ocene[[#This Row],[Kolona6]:[Kolona22]])=0,\"\",SUM(Ocene[[#This Row],[Kolona6]:[Kolona22]]))","v":""},{"$f":"IFERROR(IF(Ocene[[#This Row],[Prosečna]]<>\"\",HLOOKUP(Ocene[[#This Row],[Prosečna]]*UkupnoPoena,TabelaOcena,3),\"\"),0)","v":""},{"$f":"IFERROR(IF(Ocene[[#This Row],[Prosečna]]<>\"\",HLOOKUP(Ocene[[#This Row],[Prosečna]]*UkupnoPoena,TabelaOcena,4),\"\"),0)","v":""}]
[{"$nulls":3},{"$f":"IFERROR(IF(COUNT(Ocene[[#This Row],[Kolona6]:[Kolona22]])=0,\"\",SUM(Ocene[[#This Row],[Kolona6]:[Kolona22]])/UkupnoPoena),\"\")","v":""},{"$f":"IF(COUNT(Ocene[[#This Row],[Kolona6]:[Kolona22]])=0,\"\",SUM(Ocene[[#This Row],[Kolona6]:[Kolona22]]))","v":""},{"$f":"IFERROR(IF(Ocene[[#This Row],[Prosečna]]<>\"\",HLOOKUP(Ocene[[#This Row],[Prosečna]]*UkupnoPoena,TabelaOcena,3),\"\"),0)","v":""},{"$f":"IFERROR(IF(Ocene[[#This Row],[Prosečna]]<>\"\",HLOOKUP(Ocene[[#This Row],[Prosečna]]*UkupnoPoena,TabelaOcena,4),\"\"),0)","v":""}]
[{"$nulls":3},{"$f":"IFERROR(IF(COUNT(Ocene[[#This Row],[Kolona6]:[Kolona22]])=0,\"\",SUM(Ocene[[#This Row],[Kolona6]:[Kolona22]])/UkupnoPoena),\"\")","v":""},{"$f":"IF(COUNT(Ocene[[#This Row],[Kolona6]:[Kolona22]])=0,\"\",SUM(Ocene[[#This Row],[Kolona6]:[Kolona22]]))","v":""},{"$f":"IFERROR(IF(Ocene[[#This Row],[Prosečna]]<>\"\",HLOOKUP(Ocene[[#This Row],[Prosečna]]*UkupnoPoena,TabelaOcena,3),\"\"),0)","v":""},{"$f":"IFERROR(IF(Ocene[[#This Row],[Prosečna]]<>\"\",HLOOKUP(Ocene[[#This Row],[Prosečna]]*UkupnoPoena,TabelaOcena,4),\"\"),0)","v":""}]
[]
[null,"Rezime odeljenja",null,"Prosečna",null,"slovna ocena","Prosečna ocena","","","","","","","","","","",""]
[null," Prosečna",null,{"$f":"IFERROR(AVERAGE(Ocene[[#All],[Prosečna]]),0)","v":{"v":0.9550000000000001,"d":"95.5%"}},null,{"$f":"IFERROR(HLOOKUP(D22*UkupnoPoena,TabelaOcena,3),\"\")","v":"A"},{"$f":"IFERROR(AVERAGE(Ocene[[#All],[Prosečna ocena]]),0)","v":{"v":3.835,"d":"3.84"}},"","","","","","","","","","","","","","","","",""]
[null," Najbolji rezultat",null,{"$f":"IFERROR(MAX(Ocene[[#All],[Prosečna]]),0)","v":{"v":1,"d":"100.0%"}},null,{"$f":"IFERROR(HLOOKUP(D23*UkupnoPoena,TabelaOcena,3),\"\")","v":"A+"},{"$f":"IFERROR(MAX(Ocene[[#All],[Prosečna ocena]]),0)","v":{"v":4,"d":"4.00"}},"","","","","","","","","","","","","","","","",""]
[null," Najniži rezultat",null,{"$f":"IFERROR(MIN(Ocene[[#All],[Prosečna]]),0)","v":{"v":0.91,"d":"91.0%"}},null,{"$f":"IFERROR(HLOOKUP(D24*UkupnoPoena,TabelaOcena,3),\"\")","v":"A-"},{"$f":"IFERROR(MIN(Ocene[[#All],[Prosečna ocena]]),0)","v":3.67},"","","","","","","","","","","","","","","","",""]